Cogmind - Beta 14 @@@ ROGUE MODE // 2024.08.12 @ 23:27:57 Player: Gaffe Result: Destroyed by D-53 Grenadier with Mini Grenade Launcher Performance ------------- Evolutions (0) 0 Regions Visited (2) 400 Robots Destroyed (4) 20 Value Destroyed (131) 131 Prototype IDs (0) 0 Alien Tech Used (0) 0 Bonus (0) 0 TOTAL SCORE: 551 Bonus ------- None Cogmind --------- Core Integrity 0/250 Matter 300/300 Energy 99/100 System Corruption 1% Temperature Cool (2) Movement Flying (40) Location -10/Mines Parts ------- > --- POWER (1) -------- (None) > --- PROPULSION (2) --- Flight Unit > --- UTILITY (2) ------ (None) > --- WEAPON (2) ------- (None) > --- INVENTORY (5) ---- Light Ion Engine Improved Aluminum Leg Improved Aluminum Leg Small Storage Unit Peak State ------------ > --- POWER ------------ Light Ion Engine > --- PROPULSION ------- Wheel Compact Wheel > --- UTILITY ---------- Small Storage Unit ECM Suite > --- WEAPON ----------- EM Pulse Gun Light Assault Rifle > --- INVENTORY -------- (None) [Rating: 7] Favorites ----------- Power Light Ion Engine Engine Light Ion Engine Propulsion Wheel Wheel Wheel Flight Unit Flight Unit Utility Sensor Array Device Sensor Array Storage Small Storage Unit Weapon Light Assault Rifle Energy Gun EM Pulse Gun Ballistic Gun Light Assault Rifle Build | -11 -10 -10 ------- Run | Yrd Mat Min Slots Evolved . | . . . Power . | . . . Propulsion . | . . . Utility . | . . . Weapon . | . . . Parts Attached 12 | 6 3 3 Power 2 | 1 1 . Engine 2 | 1 1 . Core . | . . . Reactor . | . . . Propulsion 3 | 2 . 1 Treads . | . . . Leg . | . . . Wheel 2 | 2 . . Hover . | . . . Flight 1 | . . 1 Utility 3 | 1 2 . Device 2 | . 2 . Storage 1 | 1 . . Processor . | . . . Hackware . | . . . Protection . | . . . Artifact . | . . . Weapon 4 | 2 . 2 Energy Gun 2 | 1 . 1 Energy Cannon . | . . . Ballistic Gun 2 | 1 . 1 Ballistic Cannon . | . . . Launcher . | . . . Special Weapon . | . . . Impact Weapon . | . . . Slashing Weapon . | . . . Piercing Weapon . | . . . Special Melee Weapon . | . . . Unidentified Prototypes . | . . . Corrupted Parts 1 | . 1 . System Corruption 1 | . 1 . Parts Lost 8 | . . 8 Power 1 | . . 1 Propulsion 2 | . . 2 Utility 2 | . . 2 Weapon 3 | . . 3 Highest Loss Streak 5 | . . 5 To Critical Strikes . | . . . Average Slot Usage (%) 86 | . 99 74 Engine 10 | . 14 7 Wheel 25 | . 28 23 Device 21 | . 24 18 Storage 1 | . 2 . Energy Gun 13 | . 14 13 Ballistic Gun 11 | . 14 9 Peak Build Rating 7 | 6 7 7 Average Rating 5 | 3 6 5 On Entrance 4 | . 6 7 Naked Turns 10 | . . 10 Heaviest Build 13 | 11 13 12 Greatest Support 26 | 26 26 26 Greatest Overweight (x) . | . . . Average Overweight (x) . | . . . Largest Inventory Capacity 8 | 8 8 5 Average Capacity 5 | 6 5 5 Most Carried 5 | 3 5 5 Average Carried 3 | . 2 4 Final Capacity 8 | 8 5 5 Final Carried 5 | . 5 4 Class Distribution -------------------- 100% | Mutant Dominant Class ---------------- Mutant | -10/Materials Mutant | -10/Mines Resources | -11 -10 -10 ----------- Run | Yrd Mat Min Matter Collected 300 | 67 75 158 Remotely . | . . . Salvage Created 177 | . 75 102 Parts 6 | . 5 1 Haulers Intercepted . | . . . Recyclers Shooed 1 | . 1 . Parts Field Recycled . | . . . Retrieved Matter . | . . . Parts Self-Destructed . | . . . Prevented . | . . . Kills | -11 -10 -10 ------- Run | Yrd Mat Min Combat Hostiles Destroyed 3 | . 1 2 Guns 3 | . 1 2 Classes Destroyed 2 | . 2 . Watcher 1 | . 1 . Grunt 3 | . 1 2 Best Kill Streak 2 | . 2 1 Combat Bots Only 1 | . 1 1 Max Kills in Single Turn 1 | . 1 1 Gunslinging . | . . . Exploded . | . . . Melee . | . . . Uniques/NPCs Destroyed . | . . . Combat | -11 -10 -10 -------- Run | Yrd Mat Min Hostile Shots Fired 65 | . 2 63 Missed 24 | . 2 22 Damage Taken 626 | . . 626 Core 259 | . . 259 Absorbed by Shields . | . . . Core Remaining (%) 100 | 100 . . Volleys Fired 32 | . 4 28 Largest 2 | . 2 2 Hottest 90 | . 60 90 Shots Fired 42 | . 8 34 Gun 42 | . 8 34 Cannon . | . . . Launcher . | . . . Special . | . . . Kinetic 20 | . 4 16 Thermal 11 | . . 11 Explosive . | . . . Electromagnetic 11 | . 4 7 Robot Hit Streak 8 | . 7 8 Robot Miss Streak 6 | . . 6 Penetration Max . | . . . Secondary Targets . | . . . Shots Hit Robots 25 | . 7 18 Core Hits 9 | . 4 5 Critical Kills . | . . . Critical Parts Destroyed . | . . . Critical Strikes 3 | . . 3 Burn 3 | . . 3 Melee Attacks . | . . . Impact . | . . . Slashing . | . . . Piercing . | . . . Sneak Attacks . | . . . Combat Hostiles . | . . . Follow-up Attacks . | . . . Damage Inflicted 314 | . 95 219 Guns 314 | . 95 219 Cannons . | . . . Explosions . | . . . Melee . | . . . Ramming . | . . . Kinetic 115 | . 34 81 Thermal 98 | . . 98 Explosive . | . . . Electromagnetic 101 | . 61 40 Impact . | . . . Slashing . | . . . Piercing . | . . . Highest Corruption 1 | . 1 1 Average Corruption 1 | . 1 1 Corruption Purged . | . . . Corruption Blocked . | . . . Effects 3 | . . 3 Heat Flow Errors 1 | . . 1 Data Loss (minor) 1 | . . 1 Weapon Failures 1 | . . 1 Overload Shots . | . . . Overflow Damage . | . . . Projectiles . | . . . Explosions . | . . . Melee . | . . . Knockbacks . | . . . Impact . | . . . Kinetic . | . . . Secondary . | . . . Self-Inflicted Damage . | . . . Shots . | . . . Rammed . | . . . Targets Rammed . | . . . Kicked . | . . . Crushed . | . . . Highest Temperature 330 | . 40 330 Average Temperature 167 | . 24 186 Received Heat Transfer 255 | . . 255 Effects 4 | . . 4 Energy Bleed 1 | . . 1 Interference 3 | . . 3 Siege Activations . | . . . Robots Corrupted . | . . . Combat Hostiles . | . . . Parts Fried 1 | . 1 . Impact Corruptions . | . . . Robots Melted . | . . . Combat Hostiles . | . . . Parts Melted 2 | . . 2 Heat Transferred 518 | . . 518 Parts Sabotaged . | . . . Parts Stolen . | . . . Parts Stripped . | . . . Power Chain Reactions . | . . . Alert | -11 -10 -10 ------- Run | Yrd Mat Min Peak Influence 51 | . 42 51 Initial 16 | . . 16 Average 17 | . 7 33 Maximum Alert Level . | . . . Low Security (%) 100 | 100 100 100 Level 1 . | . . . Level 2 . | . . . Level 3 . | . . . Level 4 . | . . . Level 5 . | . . . High Security . | . . . Max Security . | . . . Squads Dispatched . | . . . Investigation . | . . . Extermination . | . . . Reinforcement . | . . . Assault . | . . . Garrison . | . . . Intercept . | . . . Searches Triggered . | . . . Construction Impeded . | . . . Haulers Reinforced . | . . . Active Scanning Responses . | . . . Cargo Convoy Interrupts . | . . . Stealth | -11 -10 -10 --------- Run | Yrd Mat Min Distress Signals 1 | . . 1 Communications Jammed . | . . . Distress Signals . | . . . Times Spotted 12 | . 3 9 Peak Tracking Total 5 | . 1 5 Tactical Retreats 2 | . . 2 Traps | -11 -10 -10 ------- Run | Yrd Mat Min Traps Triggered . | . . . Indirectly . | . . . Trap Hack Attempts . | . . . Triggered . | . . . Disarmed . | . . . Reprogrammed . | . . . Reused . | . . . Traps Extracted . | . . . Installed . | . . . Triggered . | . . . Machines | -11 -10 -10 ---------- Run | Yrd Mat Min Machines Disabled . | . . . Max in Single Turn . | . . . Machines Repaired . | . . . Machines Dismantled . | . . . Machines Sabotaged . | . . . Overloaded Fab Kills . | . . . Hacking | -11 -10 -10 --------- Run | Yrd Mat Min Machines Accessed 1 | . 1 . Terminals 1 | . 1 . Fabricators . | . . . Repair Stations . | . . . Recycling Units . | . . . Scanalyzers . | . . . Garrison Access . | . . . Total Hacks 2 | . 2 . Successful . | . . . Failed 2 | . 2 . Catastrophic . | . . . Database Lockouts . | . . . Manual . | . . . Terminals 2 | . 2 . Fabricators . | . . . Repair Stations . | . . . Recycling Units . | . . . Scanalyzers . | . . . Garrison Access . | . . . Terminal Hacks . | . . . Fabricator Hacks . | . . . Repair Station Hacks . | . . . Recycling Unit Hacks . | . . . Scanalyzer . | . . . Garrison Access Hacks . | . . . Unauthorized Hacks . | . . . Terminals . | . . . Fabricators . | . . . Repair Stations . | . . . Recycling Units . | . . . Scanalyzers . | . . . Garrison Access . | . . . Data Cores Recovered . | . . . Used . | . . . Hacking Detections 1 | . 1 . Full Trace Events . | . . . Feedback Events . | . . . Feedback Blocked . | . . . Robot Schematics Acquired . | . . . Robots Built . | . . . Authchips . | . . . Time . | . . . Total Robot Build Rating . | . . . Part Schematics Acquired . | . . . Parts Built . | . . . Authchips . | . . . Time . | . . . Total Part Build Rating . | . . . Parts Repaired . | . . . Time . | . . . Parts Recycled . | . . . Recycled Matter . | . . . Retrieved Matter . | . . . Retrieved Components . | . . . Parts Scanalyzed . | . . . Part Schematics Acquired . | . . . Parts Damaged . | . . . Bothacking | -11 -10 -10 ------------ Run | Yrd Mat Min Used RIF Installer . | . . . Robots Hacked . | . . . Non-combat . | . . . Combat . | . . . Robot Hacks Applied . | . . . Relay Couplers Released . | . . . Fabnet Peak Effective % . | . . . Robots Rewired . | . . . Allies Hacked . | . . . Hacks Repelled . | . . . Allies | -11 -10 -10 -------- Run | Yrd Mat Min Total Allies . | . . . Largest Group . | . . . Highest-Rated Group . | . . . Highest-Rated Ally . | . . . Total Orders . | . . . Ally Attacks . | . . . Total Damage . | . . . Kills . | . . . Allies Corrupted . | . . . Allies Melted . | . . . Intel | -11 -10 -10 ------- Run | Yrd Mat Min Robot Analysis Total . | . . . Derelict Logs Recovered . | . . . Drone Launches . | . . . Drone Recoveries . | . . . Exploration | -11 -10 -10 ------------- Run | Yrd Mat Min Turns Passed 405 | 41 184 180 Spaces Moved 304 | 35 135 134 Core 26 | 4 . 22 Treads . | . . . Legs . | . . . Wheels 260 | 31 135 94 Hover . | . . . Flight 18 | . . 18 Fastest Speed 40 | 50 90 40 Average Speed 83 | 84 90 76 Slowest Speed 90 | 90 90 90 Overloaded Moves . | . . . Propulsion Burnouts . | . . . Robots Hopped 1 | . . 1 Cave-ins Triggered . | . . . Exploration Rate (%) 21 | 4 29 32 Regions Visited 2 Branch Regions 1 Pre-discovered Areas . | . . . Known Exits Taken . | . . . Unknown Exits Taken 2 | 1 1 . Scrap Searched . | . . . Spaces Dug . | . . . Terrain Destroyed . | . . . Melee . | . . . Projectile . | . . . AOE . | . . . Terrain Rammed . | . . . Walls Destroyed . | . . . Machines Disabled . | . . . Actions | -11 -10 -10 --------- Run | Yrd Mat Min Total 413 | 46 189 178 Wait 55 | . 42 13 Move 300 | 34 134 132 Hop 1 | . . 1 Pick Up 13 | 6 6 1 Fast Attach . | . . . Attach 9 | 6 1 2 Detach . | . . . Swap 3 | . 2 1 Drop . | . . . Fire 32 | . 4 28 Melee . | . . . Ram . | . . . Kick . | . . . Crush . | . . . Escape Stasis . | . . . Rewire . | . . . Trap . | . . . Miscellaneous . | . . . Route ------- -11/Scrapyard -10/Materials -10/Mines History --------- Turn | Location | Event 6 | -11/Scrapyard | Discovered new exit (range 15) 42 | -11/Scrapyard | Entered Materials 217 | -10/Materials | Discovered new exit (range 11) 226 | -10/Materials | Entered Mines 253 | -10/Mines | Assembled infested the area 308 | -10/Mines | Build established: Mutant 366 | -10/Mines | Core integrity fell below 50% 378 | -10/Mines | Core integrity fell below 20% 406 | -10/Mines | Destroyed by D-53 Grenadier with Mini Grenade Launcher Last Messages --------------- Ion Engine destroyed. ECM Suite destroyed. System corrupted: Heat flow error (+271). Sml. Laser melted. G-34 Mercenary destroyed. Acquired 42 matter. Overheating: System interference. Lgt. Assault Rifle temporarily disabled. Acquired 50 matter. K-01 Serf collects debris. Med. Laser destroyed. Lgt. Assault Rifle destroyed. Com. Wheel destroyed. Wheel destroyed. Sensor Array destroyed. The unstable cave ceiling collapses. K-01 Serf collects debris. Acquired Flight Unit. K-01 Serf collects debris. Acquired 66 matter. Map ----- +----------------------------------------------------+ | ??????????????????????????????????? ????????????? | | ??????????????????????????????????? ????????????? | | ?????????????????????????????????? #???????????? | | ??????????????????????????????????# #???????????? | | ?????????????????????????????????## #???????????? | | ????????????????????????????????## #???????????? | | ????????????????????????????????# ##??????????? | | ???????????????????????????????## ##?????????? | | ????????????????????????######## #?????????? | | ????????????????????????? ??????????? | | ??????????????????????????? ! #??????????? | | ????????????????????????????? ##?????????? | | ??????????????????????????????# ##????????? | | ???????????????????????????????# #????????? | | ???????????????????????????????#g #????????? | | ??????????????????????????????## d #????????? | | ?????????????????????????????## ## ####??????? | | ??????????????????????????#### ## ####???? | | ?????????????????????????## ## ###?? | | ?????????????????????????# ### #?? | | ?????????????????????????# ##?# ##?? | | ??????????????######?????# k #??## # ##?? | | ?????????????## ####??# #??# # ##? | | ?????????????# #### ##?# #? | | ?????????????# ## #### # ## | | ?????????????# d@ #?## ### # | | ?????????????## % ## ! #???# ### | | ??????????????#### ######## ##???# | | ?????????????????## ##???????###????##### ! ## | | ??????????????????####???????????????????#!% ### | | ????????????????????????????????????????#! ! #?# | | ???????????????????????????????????????# * #?## | | ???????????????????????????????????????# ??# | | ??????????????????????????????????????# ??# | | ?????????????????????????????????????# #??# | | ?????????????????????????????????????# ##???# | | ????????????????????????????????????? #?????# | | ???????????????????????????????????? #?????## | | ???????????????????????????????????# #?????## | | ????????????????????????????????????? ?????## | | ??????????????????????????????????????? ?????## | | ????????????????????????????????????????????## | | ???????????????????????????????????????????## | | ???????????????????????????????????????????# # | | ???????????????????????????????????????????# ## | | ???????????????????????????????????????????## ##? | | ????????????????????????????????????????????###??? | | ?????????????????????????????????????????????????? | | ?????????????????????????????????????????????????? | | ?????????????????????????????????????????????????? | +----------------------------------------------------+ Best States ------------- Heat Dissipation 25 Energy Generation 10 Energy Capacity 250 Matter Stores 300 Matter Capacity 300 Sight Range 16 Robot Scan Range 14 Terrain Scan Density 10 ECM Strength 1 Evasion (%) 62 Item Schematics ----------------- None Robot Schematics ------------------ None Fabricated ------------ Nothing Alien Tech Used ----------------- None Achievements -------------- None Challenges ------------ None Game ------ Seed MiningTiamatNanoactuators Manual? 0 Play Time 00:10:19 Cumulative 6.2 hours Start 2024.08.12 @ 23:19:35 End 2024.08.12 @ 23:27:57 Sessions 1 Manual Loads 0 Difficulty Rogue Special Mode None Game No. 9 Rogue 9 Adventurer 0 Explorer 0 Win Type - Total 0 Types 0/0/0/0/0/0/0/0/0 Lore% 2 Gallery% 9 Achievement% 9 Wizard Run 0 Options --------- Layout 1 ASCII 0 Keyboard 0 Movement Mouse Keybinds 0 Fullscreen 2 Font 32/SmallcapsGlow Map View 50x35 Zoom Use 0% Tactical HUD 0 Map Filters NONE Filters NONE Steam 1 RUN: 0d1ebc22-98b9-4602-a815-c2560c82dbe8